bitfinex/quotes_ETHUSD_20260106
["timestamp","ask_amount","ask_price","bid_price","bid_amount"]
[1767702943403,0.13350564,3234.6,3234.3,0.002]
[1767702943608,3.09147679,3234.7,3234.3,0.002]
[1767702945205,3.09138122,3234.8,3234.3,0.91073518]
[1767702946606,7.08679403,3234.8,3234.2,0.002]
[1767702946809,0.13350564,3234.7,3234.1,0.002]
[1767702947136,6.95328839,3234.8,3234.1,0.91073518]
[1767702947425,0.13350564,3234.7,3234.1,0.002]
[1767702947597,0.13350564,3234.6,3234.1,0.002]
[1767702947787,0.81,3234.5,3234.1,0.002]
[1767702948115,0.13350564,3234.4,3234.1,0.002]
[1767702948489,0.81,3234.5,3234.1,0.002]
[1767702948894,0.81,3234.5,3234.1,0.91073518]
[1767702949777,4.03523627,3234.5,3234.1,0.002]
[1767702949979,3.90173063,3234.5,3234.1,0.002]
[1767702950180,3.90173063,3234.5,3234.1,0.91073518]
[1767702950181,4.73111616,3234.5,3234.1,0.91073518]
[1767702952120,12.40715376,3234.5,3234.0,0.002]
[1767702952717,9.31542313,3234.5,3234.0,0.002]
[1767702953120,4.73111616,3234.5,3234.0,0.91073518]
[1767702955700,1.63938553,3234.5,3234.0,0.91073518]
[1767702955912,3.90167762,3234.5,3234.0,0.91073518]
[1767702956643,6.99335524,3234.5,3234.0,0.91073518]
[1767702958111,6.99335524,3234.5,3234.0,0.002]
[1767702959840,6.99335524,3234.5,3233.9,0.002]
[1767702961318,7.12686088,3234.5,3233.9,0.002]
[1767702961934,4.71781261,3234.3,3233.6,0.94845189]
[1767702962102,0.001,3234.2,3233.6,0.94845189]
[1767702962505,0.13350564,3234.1,3233.6,0.002]
[1767702962815,0.81,3234.0,3233.6,0.94845189]
[1767702963133,0.13350564,3233.9,3233.3,0.002]
[1767702963307,0.81,3234.0,3233.4,0.94845189]
[1767702963738,3.09224156,3233.9,3233.4,0.94845189]
[1767702964438,3.05006974,3233.9,3233.4,0.94845189]
[1767702964641,3.09219179,3234.0,3233.4,0.94845189]
[1767702964812,0.81,3233.9,3233.4,0.94845189]
[1767702965532,0.81,3233.8,3233.4,0.94845189]
[1767702965708,3.90236709,3233.8,3233.4,0.94845189]
[1767702965913,0.81,3233.8,3233.4,0.94845189]
[1767702966641,11.96930372,3233.8,3233.0,0.94645189]
[1767702966833,4.58430697,3233.6,3233.0,0.94645189]
[1767702967838,6.18524818,3233.5,3233.0,0.94645189]
[1767702968516,10.76955515,3233.5,3232.8,0.002]
[1767702968838,11.6722166,3233.5,3232.8,0.002]
[1767702969042,0.52258542,3233.4,3232.8,0.002]
[1767702969344,0.81,3233.3,3232.8,0.002]
[1767702970041,3.09291104,3233.2,3232.8,0.002]
[1767702971928,3.99557249,3233.2,3232.8,0.002]
[1767702972243,3.09291104,3233.2,3232.8,0.002]
[1767702973129,3.84474354,3233.2,3232.8,0.002]
[1767702973850,3.84474354,3233.2,3232.8,0.94845189]
[1767702974140,3.84474354,3233.2,3233.1,0.002]
[1767702974948,0.7518325,3233.2,3233.1,0.002]
[1767702975151,0.81,3233.2,3233.1,0.94845189]
[1767702975445,0.001,3233.5,3233.2,0.94645189]
[1767702975950,3.90239229,3233.8,3233.5,0.94645189]
[1767702976331,0.81,3233.8,3233.5,0.94645189]
[1767702976643,3.09235176,3233.8,3233.5,0.94645189]
[1767702976845,3.90235176,3233.8,3233.5,0.94645189]
[1767702977850,3.90235176,3233.8,3233.3,0.94645189]
[1767702982564,3.9023689,3233.8,3233.3,0.94645189]
[1767702982743,6.9947378,3233.8,3233.3,0.94645189]
[1767702982937,0.90266145,3233.7,3233.1,0.94845189]
[1767702983138,6.9947378,3233.8,3233.1,0.94845189]
[1767702984452,3.9023689,3233.8,3233.1,0.94845189]
[1767702985494,0.81,3233.7,3233.1,0.94845189]
[1767702986473,3.90247662,3233.7,3233.1,0.94845189]
[1767702986863,3.90247662,3233.7,3233.4,0.94845189]
[1767702987098,0.001,3233.5,3233.4,0.94845189]
[1767702987297,3.90247662,3233.7,3233.4,0.002]
[1767702987468,0.90266145,3233.6,3233.4,0.002]
[1767702987793,3.90240925,3233.8,3233.4,0.002]
[1767702987976,3.90240925,3233.8,3233.4,0.94845189]
[1767702989569,0.81,3233.8,3233.4,0.94845189]
[1767702990493,3.09221024,3234.0,3233.4,0.94845189]
[1767702990795,9.27328365,3235.1,3233.4,0.94845189]
[1767702990966,0.90266145,3234.9,3233.5,1.58120056]
[1767702991371,0.90266145,3234.9,3233.5,0.94645189]
[1767702992693,0.90824269,3234.7,3233.5,0.94645189]
[1767702994274,9.27414366,3234.8,3233.5,0.94645189]
[1767702994475,0.90824269,3234.7,3233.5,0.94645189]
[1767702994678,0.90824269,3234.5,3233.5,0.94645189]
[1767702995408,0.90824269,3234.5,3233.5,1.12229708]
[1767702996179,6.18314474,3234.6,3233.5,1.12229708]
[1767702996790,6.18295358,3234.7,3233.5,1.12229708]
[1767702997281,9.27443037,3234.7,3233.5,1.12229708]
[1767702997477,6.18295358,3234.7,3233.5,1.12229708]
[1767702997696,7.09119627,3234.7,3233.5,1.12229708]
[1767702997905,0.90824269,3234.6,3233.5,1.12229708]
[1767702998208,0.93295999,3234.6,3233.5,1.12229708]
[1767702998805,10.18324654,3234.5,3233.5,1.12229708]
[1767702999315,0.90824269,3233.9,3233.1,0.002]
[1767702999489,0.90824269,3233.9,3233.1,0.92696238]
[1767702999681,1.71824269,3233.9,3233.1,0.92696238]
[1767702999888,0.17182427,3233.8,3233.1,0.92696238]
[1767703000103,0.17182427,3233.8,3233.5,0.002]
[1767703000520,1.08006696,3233.8,3233.1,0.92696238]
[1767703001816,0.90824269,3233.6,3233.1,0.002]
[1767703002141,1.61755352,3233.5,3233.1,0.002]
[1767703003818,3.09271973,3233.4,3233.1,0.002]
[1767703004730,6.18543946,3233.4,3233.1,0.002]
[1767703004933,6.18543946,3233.4,3232.8,0.002]
[1767703005728,7.09368215,3233.4,3232.8,0.002]
[1767703006031,6.18582208,3233.2,3232.8,0.002]
[1767703007330,6.18582208,3233.2,3232.3,0.81]
[1767703007331,0.90824269,3233.1,3232.3,0.81]
[1767703007940,9.27873312,3233.2,3232.2,0.92696238]
[1767703007941,0.90824269,3232.9,3232.2,0.92696238]
[1767703009021,0.89189127,3232.9,3232.2,0.92696238]
[1767703009413,3.09310238,3233.0,3232.2,0.92696238]
[1767703009619,3.09310238,3233.0,3232.2,1.73696238]
[1767703009937,3.09310238,3233.0,3232.3,1.09865862]
[1767703010143,6.18609086,3233.1,3232.3,0.92496238]
[1767703010938,3.0930141,3233.1,3232.3,0.92496238]
[1767703011316,6.18609086,3233.1,3232.3,0.92496238]
[1767703011512,7.09433355,3233.1,3232.3,0.92496238]
[1767703011744,0.90824269,3233.0,3232.2,0.812]
[1767703012654,4.00143539,3233.0,3232.2,1.91065862]
[1767703012827,3.0931927,3233.0,3232.3,0.92496238]
[1767703013026,3.0931927,3233.0,3232.6,0.002]
[1767703013623,1.61761091,3233.3,3232.6,0.92696238]
[1767703013624,0.70936822,3233.3,3232.6,0.92696238]
[1767703013833,3.09294968,3233.2,3232.6,0.92696238]
[1767703014414,3.09247078,3233.7,3232.6,0.92696238]
[1767703014415,3.09253531,3233.6,3232.6,0.92696238]
[1767703014943,3.09235972,3233.8,3232.6,0.92696238]
[1767703015339,6.18471944,3233.8,3232.6,0.92696238]
[1767703016345,3.09235972,3233.8,3232.6,0.92696238]
[1767703017153,0.97080262,3234.0,3232.6,0.92696238]
[1767703019244,3.09224156,3233.9,3232.6,0.92696238]
[1767703019961,6.18448312,3233.9,3232.6,0.92696238]
[1767703021362,7.18439264,3233.9,3232.6,0.92696238]
[1767703022161,7.18439264,3233.9,3232.8,0.93862506]
[1767703022362,7.18439264,3233.9,3233.0,0.93862506]
[1767703023162,0.99990952,3233.8,3233.0,0.93862506]
[1767703024673,6.18486562,3233.7,3233.0,1.74862506]
[1767703025458,3.09243281,3233.7,3233.0,1.74862506]
[1767703026671,0.001,3233.6,3233.1,0.93862506]
[1767703027042,0.001,3233.6,3233.1,1.13097382]
[1767703028080,0.001,3233.6,3233.1,0.19234876]
[1767703028240,0.001,3233.6,3233.1,1.13097382]
[1767703029260,0.001,3233.6,3233.1,0.93862506]
[1767703029969,1.00090952,3233.6,3233.0,0.81]
[1767703030573,1.00090952,3233.6,3232.9,0.81]
[1767703030792,4.09253361,3233.5,3232.7,0.93862506]
[1767703030985,4.09253361,3233.5,3232.9,0.81]
[1767703031186,4.09253361,3233.5,3232.9,1.74862506]
[1767703032172,4.09253361,3233.5,3232.9,0.93862506]
[1767703032372,4.09253361,3233.5,3232.9,1.74862506]
[1767703033814,7.1851577,3233.5,3232.9,0.93862506]
[1767703035266,0.99990952,3233.4,3232.8,0.81]
[1767703035995,0.99990952,3233.4,3232.8,1.74862506]
[1767703037620,3.09267099,3233.5,3232.8,1.74862506]
[1767703038513,0.001,3233.4,3232.8,1.74862506]
[1767703038829,0.001,3233.4,3232.9,0.93862506]
[1767703045813,3.09228745,3233.9,3233.2,0.93862506]
[1767703046042,0.001,3234.3,3233.5,0.93862506]
[1767703046043,4.09186425,3234.2,3233.5,0.93862506]
[1767703046218,0.28912821,3234.1,3233.5,0.93862506]
[1767703046419,0.001,3234.3,3233.5,0.93862506]
[1767703046720,0.001,3234.3,3233.7,0.93862506]
[1767703046925,1.00090952,3234.3,3233.8,0.81]
[1767703047318,0.001,3234.3,3233.8,0.81]
[1767703048246,0.001,3234.3,3233.9,0.93862506]
[1767703050012,0.001,3234.0,3233.9,0.93862506]
[1767703050216,0.001,3234.3,3233.9,0.17486251]
[1767703050416,0.001,3234.3,3233.8,0.81]
[1767703052021,0.98147994,3234.3,3233.8,0.81]
[1767703053052,0.001,3234.3,3233.8,1.79556962]
[1767703053565,0.98147994,3234.3,3233.8,0.81]
[1767703055572,0.001,3234.3,3233.9,0.98556962]
[1767703060469,0.001,3234.3,3233.8,0.81]
[1767703060672,0.98147994,3234.3,3233.8,0.81]
[1767703060978,0.98047994,3234.2,3233.7,0.81]
[1767703061178,1.53741306,3234.2,3233.7,0.81]
[1767703061479,0.98047994,3234.2,3233.7,0.81]
[1767703062663,0.98047994,3234.2,3233.4,0.98556962]
[1767703062664,0.001,3234.0,3233.4,0.98556962]
[1767703062863,0.001,3234.0,3233.5,0.81]
[1767703063983,0.98147994,3234.0,3233.1,0.98556962]
[1767703064284,0.98147994,3234.0,3233.1,1.79556962]
[1767703064683,0.98147994,3234.0,3233.1,2.37561283]
[1767703066286,4.0727215,3233.9,3233.2,0.81]
[1767703066601,0.98047994,3233.8,3233.2,0.81]
[1767703067862,0.98047994,3233.8,3232.9,0.17486251]
[1767703068077,0.98047994,3233.8,3233.0,0.81]
[1767703068277,0.98047994,3233.6,3233.0,0.81]
[1767703070287,4.07303308,3233.6,3233.0,0.81]
[1767703070485,0.98047994,3233.6,3233.0,0.81]
[1767703070691,0.98047994,3233.8,3233.0,1.79556962]
[1767703070989,0.98047994,3233.8,3233.1,0.98556962]
[1767703072688,3.09243281,3233.7,3233.1,0.98556962]
[1767703074588,3.09243281,3233.7,3233.4,0.002]
[1767703077720,4.79974249,3233.7,3233.4,0.002]
[1767703078619,0.99078799,3233.6,3233.4,0.002]
[1767703079704,4.08317397,3233.8,3233.4,0.002]
[1767703079899,0.99078799,3233.8,3233.4,0.002]
[1767703080104,4.08314131,3233.8,3233.4,0.002]
[1767703080306,3.09235332,3233.8,3233.4,0.002]
[1767703082027,4.08307968,3233.9,3233.4,0.002]
[1767703082518,3.09319099,3234.0,3233.4,0.93130509]
[1767703083028,6.18538198,3234.0,3233.4,0.93130509]
[1767703083395,7.15563023,3234.0,3233.4,0.002]
[1767703083604,0.97024825,3233.9,3233.4,0.002]
[1767703084621,3.09233718,3233.8,3233.4,0.002]
[1767703084805,0.97024825,3233.9,3233.4,0.002]
[1767703085132,0.9638885,3233.9,3233.4,0.002]
[1767703085631,0.97024825,3233.8,3233.4,0.002]
[1767703087199,4.06262231,3233.8,3233.4,0.002]
[1767703089401,7.15499637,3233.8,3233.4,0.002]
[1767703089603,0.97024825,3233.7,3233.4,0.002]
[1767703090223,0.001,3234.0,3233.4,0.002]
[1767703090224,3.09226801,3233.9,3233.4,0.002]
[1767703091026,6.18453602,3233.9,3233.4,0.002]
[1767703091225,3.09226801,3233.9,3233.4,0.002]
[1767703094145,0.97024825,3233.8,3233.4,0.002]
[1767703097634,3.09226376,3233.9,3233.4,0.002]
[1767703098860,4.06343911,3234.0,3233.7,0.002]
[1767703099055,0.28941482,3233.9,3233.7,0.002]
[1767703099358,4.06343911,3234.0,3233.7,0.002]
[1767703099553,0.2894184,3233.9,3233.7,0.002]
[1767703099758,4.06343911,3234.0,3233.7,0.002]
[1767703099959,0.2894352,3233.9,3233.7,0.002]
[1767703100129,0.97024825,3233.9,3233.7,0.002]
[1767703100335,3.09319086,3234.0,3233.7,0.002]
[1767703100534,0.28945509,3233.9,3233.7,0.002]
[1767703100752,4.06343911,3234.0,3233.7,0.002]
[1767703100953,3.38175195,3233.9,3233.7,0.002]
[1767703101144,3.09228509,3233.9,3233.7,0.002]
[1767703101859,0.97124825,3234.0,3233.7,0.002]
[1767703101860,4.06343831,3234.0,3233.7,0.002]
[1767703102046,0.28946643,3233.9,3233.7,0.002]
[1767703102248,4.06343831,3234.0,3233.7,0.002]
[1767703102447,0.28946587,3233.9,3233.7,0.002]
[1767703102647,4.06343831,3234.0,3233.7,0.002]
[1767703102963,0.28946568,3233.9,3233.7,0.002]
[1767703103163,4.06343831,3234.0,3233.7,0.002]
[1767703103338,0.28946576,3233.9,3233.7,0.002]
[1767703103638,4.06343831,3234.0,3233.7,0.002]
[1767703103840,0.28946576,3233.9,3233.7,0.002]
[1767703104138,4.06343831,3234.0,3233.7,0.002]
[1767703104339,0.28946682,3233.9,3233.7,0.002]
[1767703104636,4.06343831,3234.0,3233.7,0.002]
[1767703104837,0.28946514,3233.9,3233.7,0.002]
[1767703105134,0.001,3234.0,3233.7,0.002]
[1767703105333,0.28946779,3233.9,3233.7,0.002]
[1767703105538,0.001,3234.0,3233.7,0.002]
[1767703105733,0.28946723,3233.9,3233.7,0.002]
[1767703105963,0.001,3234.0,3233.7,0.002]
[1767703106266,0.28946666,3233.9,3233.7,0.002]
[1767703106565,0.001,3234.0,3233.7,0.002]
[1767703106740,0.28946884,3233.9,3233.7,0.002]
[1767703106940,0.001,3234.0,3233.7,0.002]
[1767703107161,0.28946873,3233.9,3233.7,0.002]
[1767703107347,0.001,3234.0,3233.7,0.002]
[1767703107548,0.2894723,3233.9,3233.4,0.91330509]
[1767703107746,0.71653551,3234.0,3233.4,0.91330509]
[1767703107747,1.68678376,3234.0,3233.4,0.91330509]
[1767703107951,1.2597199,3233.9,3233.3,0.81]
[1767703108152,0.97024825,3233.9,3233.3,0.81]
[1767703109145,4.0625204,3233.9,3233.3,0.81]
[1767703109767,4.0625204,3233.9,3233.2,0.92930509]
[1767703109969,4.0625204,3233.9,3233.3,0.81]
[1767703110673,4.0625204,3233.9,3233.6,0.002]
[1767703111843,0.97024825,3233.9,3233.6,0.002]
[1767703112041,0.001,3234.0,3233.6,0.002]
[1767703112266,0.28948871,3233.9,3233.6,0.002]
[1767703112466,0.001,3234.0,3233.6,0.002]
[1767703112857,0.001,3234.0,3233.6,0.93135608]
[1767703113267,0.001,3234.0,3233.6,0.002]
[1767703119050,0.93433594,3234.1,3233.6,0.002]
[1767703120271,0.93678919,3234.3,3233.6,0.93135608]
[1767703120478,0.28923459,3234.2,3233.6,0.93135608]
[1767703120676,0.93678919,3234.3,3233.6,0.93135608]
[1767703120850,1.22502372,3234.2,3233.6,0.002]
[1767703121052,0.93578919,3234.2,3233.6,0.002]
[1767703123280,0.001,3233.8,3233.6,0.93135608]
[1767703123470,0.93678919,3234.3,3233.6,0.002]
[1767703123876,0.001,3234.3,3233.6,0.93135608]
[1767703124687,4.02867323,3234.3,3233.6,0.93135608]
[1767703125554,0.93578919,3234.2,3233.6,0.93135608]
[1767703125880,0.93578919,3235.0,3234.1,0.92935608]
[1767703126067,0.93578919,3234.8,3234.2,0.81]
[1767703126377,0.93578919,3234.8,3234.2,0.98393561]
[1767703126582,0.93578919,3234.8,3234.2,1.91329169]
[1767703131972,4.02719241,3234.8,3234.2,1.91329169]
[1767703132387,4.02719241,3234.8,3234.2,0.17393561]
[1767703132591,0.93578919,3234.7,3234.3,0.81]
[1767703134302,0.93578919,3234.7,3234.1,0.81]
[1767703134992,0.001,3234.5,3234.1,0.81]
[1767703135371,0.001,3234.5,3233.8,0.92935608]
[1767703135690,0.001,3234.5,3233.9,0.81]
[1767703135894,0.93678919,3234.5,3234.0,0.17393561]
[1767703136192,0.93678919,3234.5,3233.9,0.81]
[1767703137070,0.93678919,3234.5,3234.0,0.81]
[1767703137265,0.93678919,3234.5,3233.7,0.97332658]
[1767703137470,0.93678919,3234.5,3234.0,0.81]
[1767703142281,0.001,3234.5,3234.0,1.74911934]
[1767703142478,0.001,3235.2,3234.1,1.11403127]
[1767703142479,4.01757188,3235.1,3234.1,1.11403127]
[1767703142702,0.001,3235.2,3234.1,1.14495177]
[1767703143007,0.001,3235.2,3234.3,0.93911934]
[1767703143173,0.92744711,3235.2,3234.3,0.93911934]
[1767703143374,0.92744711,3235.2,3234.2,0.03091954]
[1767703143594,0.92744711,3235.2,3234.2,0.22641462]
[1767703143802,0.92744711,3235.2,3234.2,1.16553396]
[1767703144002,3.09199901,3235.2,3234.2,1.16553396]
[1767703144198,4.01844612,3235.2,3234.2,1.13461442]
[1767703144392,0.92644711,3235.1,3234.2,1.13461442]
[1767703145090,4.01763721,3235.0,3234.2,1.13461442]
[1767703145398,0.92644711,3235.0,3234.2,1.13461442]
[1767703146877,0.001,3234.9,3234.2,1.13461442]
[1767703149386,0.001,3234.9,3234.3,0.81]
[1767703149387,0.92744711,3234.9,3234.3,0.81]
[1767703149581,0.92644711,3234.8,3234.3,0.81]
[1767703149778,0.92644711,3234.8,3233.8,4.64]
[1767703151106,0.92644711,3234.8,3233.8,5.57911934]
[1767703151807,0.92644711,3234.6,3233.8,5.57911934]
[1767703154133,0.92644711,3234.4,3233.8,4.64]
[1767703154433,0.92644711,3234.4,3233.7,0.81]
[1767703156411,0.92644711,3234.4,3233.7,1.74911934]
[1767703156611,4.01821303,3234.4,3233.7,1.74911934]
[1767703158514,0.92644711,3234.3,3233.7,0.81]
[1767703159635,0.92644711,3234.3,3234.0,0.002]
[1767703160037,0.92644711,3234.1,3234.0,0.002]
[1767703160642,0.92644711,3234.1,3233.6,0.002]
[1767703162522,0.92644711,3234.0,3233.6,0.002]
[1767703163243,0.92644711,3234.0,3233.4,0.81]
[1767703165440,4.01859941,3234.0,3233.4,0.81]
[1767703166072,0.92644711,3234.0,3233.4,0.81]
[1767703170256,0.92644711,3234.0,3233.4,1.44670363]
[1767703171876,0.92644711,3234.0,3233.4,2.35618252]
[1767703172171,0.92644711,3234.0,3233.7,0.002]
[1767703175157,3.80277812,3234.4,3233.7,0.002]
[1767703175158,3.09185913,3234.3,3233.7,0.002]
[1767703175365,3.09185913,3234.3,3233.7,0.91147889]
[1767703175585,3.78131425,3234.3,3233.7,0.91147889]
[1767703176087,4.72998541,3234.3,3233.7,0.91147889]
[1767703177078,0.94867116,3234.2,3233.4,0.812]
[1767703177272,0.94867116,3234.2,3232.2,0.002]
[1767703177274,0.94867116,3233.5,3232.2,0.002]
[1767703177583,0.94867116,3233.2,3232.5,0.90947889]
[1767703177757,0.94867116,3233.2,3232.6,0.91147889]
[1767703179154,0.81,3233.6,3232.6,0.002]
[1767703179381,4.07198047,3233.8,3232.6,0.91147889]
[1767703179583,0.94867116,3233.6,3232.8,0.90947889]
[1767703180886,0.97959755,3233.6,3232.8,0.90947889]
[1767703181597,4.07214581,3233.6,3232.8,0.90947889]
[1767703182297,0.97959755,3233.6,3232.8,0.90947889]
[1767703183382,4.07215356,3233.6,3232.8,0.90947889]
[1767703183701,0.97959755,3233.6,3232.9,0.90947889]
[1767703183896,0.94867116,3233.9,3233.0,0.94040991]
[1767703184107,0.03092639,3233.8,3233.0,0.90947889]
[1767703184471,1.78959755,3233.9,3233.0,0.90947889]
[1767703184676,4.88187316,3233.9,3233.2,0.90947889]
[1767703184878,1.78959755,3233.9,3233.2,0.90947889]
[1767703185102,1.75867116,3233.9,3233.2,0.90947889]
[1767703186378,4.88186247,3233.9,3233.2,0.90947889]
[1767703187100,0.94867116,3233.8,3233.2,0.90947889]
[1767703187302,0.03092639,3233.7,3233.2,0.90947889]
[1767703187489,0.97959755,3233.7,3233.1,0.54944677]
[1767703187680,0.97959755,3233.7,3232.9,0.90947889]
[1767703192119,4.07204063,3233.7,3232.9,0.90947889]
[1767703192915,0.97959755,3233.7,3232.9,0.90947889]
[1767703196127,4.07205834,3233.7,3232.9,0.90947889]
[1767703197330,0.97959755,3233.7,3233.2,0.002]
[1767703197712,0.001,3233.4,3233.2,0.002]
[1767703201227,0.001,3234.0,3233.3,0.90106454]
[1767703201435,0.001,3234.0,3233.5,0.90106454]
[1767703201611,0.98020469,3234.0,3233.4,0.63891179]
[1767703201812,0.001,3234.0,3233.5,0.90106454]
[1767703202619,0.97920469,3233.9,3233.2,0.002]
[1767703203325,0.97920469,3233.9,3233.2,0.90306454]
[1767703203521,0.97920469,3233.9,3233.3,0.54880533]
[1767703203726,0.03092639,3233.8,3233.3,0.54880533]
[1767703203922,1.01013108,3233.8,3233.2,0.002]
[1767703204109,0.97920469,3233.8,3233.2,0.002]
[1767703208237,3.09177941,3234.4,3233.2,0.002]
[1767703208238,0.97920469,3234.6,3233.6,0.90106454]
[1767703208417,0.97920469,3234.4,3233.6,0.90106454]
[1767703208743,0.001,3234.7,3233.8,0.90106454]
[1767703208914,1.01013108,3234.6,3233.8,0.90106454]
[1767703210626,1.01013108,3234.6,3233.7,0.52076457]
[1767703211812,1.01013108,3234.6,3233.8,0.90106454]
[1767703213917,1.01013108,3234.6,3233.8,5.48605331]
[1767703214117,1.01013108,3234.6,3233.9,0.60068179]
[1767703214641,0.03092639,3234.6,3234.0,0.90106454]
[1767703214842,0.97920469,3234.6,3233.9,0.60068179]
[1767703215830,0.97920469,3234.6,3233.9,1.50174633]
[1767703217625,0.03092639,3234.5,3233.9,1.50174633]
[1767703217823,1.01013108,3234.5,3234.0,0.60867351]
[1767703218742,1.01013108,3234.5,3233.7,0.90106454]
[1767703219235,0.001,3234.7,3233.7,0.90106454]
[1767703219432,0.001,3234.7,3233.7,0.93198886]
[1767703219851,0.001,3234.7,3233.7,0.90106454]
[1767703221026,0.03192639,3234.7,3233.7,0.90106454]
[1767703221236,0.03192639,3234.7,3233.9,0.90106454]
[1767703222247,0.001,3234.7,3233.9,0.90106454]
[1767703222425,0.001,3234.2,3233.9,0.90106454]
[1767703222626,0.60351858,3234.7,3233.8,1.07217099]
[1767703222823,0.001,3234.9,3234.0,0.90106454]
[1767703223029,0.001,3235.2,3234.3,0.90106454]
[1767703223240,0.001,3235.2,3234.4,1.44959498]
[1767703223449,3.09200726,3235.2,3234.4,1.44959498]
[1767703223638,0.001,3235.2,3234.4,0.54853044]
[1767703224724,0.001,3235.2,3234.5,0.90106454]
[1767703230746,3.09055114,3235.7,3234.9,0.90106454]
[1767703230747,3.09057369,3235.7,3234.9,0.90106454]
[1767703230947,3.09057369,3235.7,3234.6,0.93197354]
[1767703230948,0.30905737,3235.6,3234.6,0.93197354]
[1767703231142,3.09057369,3235.7,3234.6,0.93197354]
[1767703231570,3.09057369,3235.7,3234.6,0.90106454]
[1767703231773,6.18114738,3235.7,3234.6,0.90106454]
[1767703231948,0.03092639,3235.6,3234.6,0.90106454]
[1767703232572,3.0907124,3235.5,3234.6,0.90106454]
[1767703233276,3.12158192,3235.6,3234.6,0.90106454]
[1767703234173,3.09065553,3235.6,3234.6,0.90106454]
[1767703234349,0.001,3235.2,3234.6,0.9319799]
[1767703234548,3.09052873,3235.7,3234.6,0.9319799]
[1767703235274,3.09052873,3235.7,3234.6,0.90106454]
[1767703235469,6.18105746,3235.7,3234.6,0.90106454]
[1767703235676,0.03092639,3235.6,3234.6,0.90106454]
[1767703238383,3.12159099,3235.6,3234.6,0.90106454]
[1767703240576,3.0906646,3235.6,3234.8,0.97724477]
[1767703241686,3.0905576,3235.7,3234.8,0.97724477]
[1767703241887,0.28861036,3235.6,3234.8,0.97724477]
[1767703242083,3.0905576,3235.7,3235.0,0.97724477]
[1767703242289,0.28861125,3235.6,3235.0,0.97724477]
[1767703242594,0.03092639,3235.6,3235.0,0.97724477]
[1767703247193,0.81,3235.7,3235.0,0.97724477]
[1767703247371,0.001,3235.3,3235.0,0.97724477]
[1767703247569,0.03092639,3235.6,3235.2,0.97724477]
[1767703247969,0.03092639,3235.6,3235.0,0.89997958]
[1767703247970,0.10819158,3235.6,3235.0,0.89997958]
[1767703249472,3.19883698,3235.6,3235.0,0.89997958]
[1767703250899,3.19883698,3235.6,3234.9,0.002]
[1767703250900,0.07726519,3235.5,3234.9,0.002]
[1767703251093,0.03092639,3235.4,3234.9,0.002]
[1767703251289,3.09090347,3235.3,3234.8,0.97724477]
[1767703251492,3.09090347,3235.3,3234.5,0.002]
[1767703251493,0.12004794,3235.1,3234.5,0.97924477]
[1767703251680,0.12004794,3235.1,3234.5,0.002]
[1767703251884,0.12004794,3235.1,3234.5,1e-08]
[1767703252314,0.12004794,3234.7,3234.2,0.002]
[1767703252478,0.12004794,3234.5,3233.6,0.97724477]
[1767703252673,1.56949112,3234.6,3233.6,0.97724477]
[1767703252674,0.12004794,3234.3,3233.6,0.97724477]
[1767703253493,0.12004794,3234.4,3233.6,0.97724477]
[1767703255506,3.90169712,3234.5,3233.8,0.97724477]
[1767703255707,3.09160421,3234.6,3233.9,0.97924477]
[1767703255918,3.90160421,3234.6,3233.9,0.97924477]
[1767703256715,3.90160421,3234.6,3233.9,0.96547423]
[1767703256921,4.60091476,3234.6,3233.9,0.96547423]
[1767703258633,0.13181848,3235.1,3233.9,0.96547423]
[1767703258838,1.12934136,3235.0,3233.9,0.96547423]
[1767703259036,0.84092639,3235.0,3233.9,0.96547423]
[1767703259336,0.97274487,3235.0,3233.9,0.96547423]
[1767703259537,0.97274487,3235.0,3234.2,0.98151908]
[1767703259712,0.001,3234.8,3234.2,0.98151908]
[1767703259914,0.03192639,3234.8,3234.2,0.98151908]
[1767703262644,3.09147679,3234.7,3234.2,0.98151908]
[1767703262811,0.03092639,3234.6,3234.2,0.98151908]
[1767703264227,0.03092639,3234.7,3234.2,0.98151908]
[1767703265425,3.09157237,3234.6,3234.2,0.002]
[1767703265637,0.03092639,3234.5,3234.2,0.002]
[1767703266147,0.84092639,3234.5,3234.2,0.002]
[1767703266348,0.97274487,3234.5,3234.2,1e-08]
[1767703267521,3.9326768,3234.5,3234.2,1e-08]
[1767703267849,4.71043106,3234.5,3234.2,1e-08]
[1767703269654,7.80218147,3234.5,3234.2,1e-08]
[1767703269950,7.77125508,3234.5,3234.2,1e-08]
[1767703270151,0.03092639,3234.4,3234.2,1e-08]
[1767703270837,3.09185913,3234.3,3234.2,1e-08]
[1767703271238,3.12273951,3234.4,3234.2,1e-08]
[1767703273149,3.90295586,3234.4,3234.2,1e-08]
[1767703279859,0.78021635,3234.4,3234.2,1e-08]
[1767703280162,0.81,3234.5,3234.2,1e-08]
[1767703280361,3.90169472,3234.5,3234.2,1e-08]
[1767703282048,3.90169472,3234.5,3234.2,0.9219622]
[1767703282247,3.90169472,3234.5,3234.2,0.91996221]
[1767703285672,0.81,3234.5,3234.2,0.91996221]
[1767703287259,3.90166965,3234.5,3234.2,0.91996221]
[1767703287462,3.90166965,3234.5,3233.9,0.92396219]
[1767703288362,3.0916097,3234.6,3234.0,0.92196219]
[1767703288566,0.2893201,3234.5,3234.0,0.92196219]
[1767703288785,3.0916097,3234.6,3234.0,0.92196219]
[1767703288992,0.28931999,3234.5,3234.0,0.92196219]
[1767703289172,0.28931999,3234.5,3233.9,0.55290495]
[1767703289173,0.13381846,3234.5,3233.9,0.002]
[1767703289589,6.1832194,3234.6,3234.0,0.92196219]
[1767703289898,0.28932758,3234.5,3234.0,0.92196219]
[1767703290067,0.03092639,3234.4,3234.0,0.92196219]
[1767703291073,0.03092639,3234.5,3234.0,0.92196219]
[1767703292072,3.38118914,3234.4,3234.0,0.92196219]
[1767703292272,0.03092639,3234.3,3234.0,0.92196219]
[1767703292797,3.0918145,3234.4,3234.0,0.92196219]
[1767703294972,3.09171523,3234.5,3234.0,0.92196219]
[1767703295169,0.28943018,3234.4,3234.0,0.92196219]
[1767703295368,3.09160483,3234.6,3234.0,0.92196219]
[1767703295571,0.28947409,3234.5,3234.0,0.92196219]
[1767703295880,0.28947409,3234.4,3234.0,0.92196219]